[Event "Early-Titled-Tuesday-Blitz-September-12-2023"]
[Site "Chess.com"]
[Date "2023.09.12"]
[Round "5"]
[White "cottage_cheese"]
[Black "nss13"]
[Result "0-1"]
[WhiteElo "2317"]
[BlackElo "2550"]
[TimeControl "180+1"]
[EndTime "8:55:25 PDT"]
[Termination "nss13 won on time"]

1. e4 {[%clk 0:03:00.9]} 1... c5 {[%clk 0:02:59.7]} 2. Nf3 {[%clk 0:03:00.8]}
2... Nc6 {[%clk 0:03:00.3]} 3. Bb5 {[%clk 0:03:00.6]} 3... g6 {[%clk 0:03:00.7]}
4. Bxc6 {[%clk 0:03:00.6]} 4... dxc6 {[%clk 0:03:01.6]} 5. d3 {[%clk 0:03:00.8]}
5... Bg7 {[%clk 0:03:00.8]} 6. h3 {[%clk 0:03:00.6]} 6... Nf6 {[%clk 0:03:00.3]}
7. Nc3 {[%clk 0:02:58]} 7... Nd7 {[%clk 0:02:59.4]} 8. O-O {[%clk 0:02:51.9]}
8... e5 {[%clk 0:02:58.7]} 9. a4 {[%clk 0:02:49.6]} 9... a5 {[%clk 0:02:55.6]}
10. Nh2 {[%clk 0:02:49]} 10... Nf8 {[%clk 0:02:48.7]} 11. f4 {[%clk 0:02:44.9]}
11... exf4 {[%clk 0:02:49.6]} 12. Bxf4 {[%clk 0:02:44.7]} 12... Ne6 {[%clk
0:02:50.1]} 13. Bg3 {[%clk 0:02:34.3]} 13... Nd4 {[%clk 0:02:43.4]} 14. Bf4
{[%clk 0:01:54.7]} 14... O-O {[%clk 0:02:33.2]} 15. Rf2 {[%clk 0:01:44.1]} 15...
Be6 {[%clk 0:02:23.5]} 16. Kh1 {[%clk 0:01:42.2]} 16... Qd7 {[%clk 0:02:18.1]}
17. Nf3 {[%clk 0:01:31.7]} 17... b5 {[%clk 0:02:16.8]} 18. Ne5 {[%clk
0:01:19.7]} 18... Qe7 {[%clk 0:01:42.1]} 19. Ne2 {[%clk 0:00:27.3]} 19... Qh4
{[%clk 0:00:54]} 20. Bg3 {[%clk 0:00:16.7]} 20... Qg5 {[%clk 0:00:40.4]} 21. Bf4
{[%clk 0:00:16.3]} 21... Qh4 {[%clk 0:00:26.8]} 22. Bg3 {[%clk 0:00:14.9]} 22...
Qh5 {[%clk 0:00:22]} 23. Nxd4 {[%clk 0:00:13.9]} 23... Bxe5 {[%clk 0:00:18.5]}
24. Qxh5 {[%clk 0:00:12.8]} 24... gxh5 {[%clk 0:00:19.4]} 25. Bxe5 {[%clk
0:00:12.5]} 25... cxd4 {[%clk 0:00:19.7]} 26. Rf3 {[%clk 0:00:10.3]} 26... h4
{[%clk 0:00:15.5]} 27. Bxd4 {[%clk 0:00:09.3]} 27... f5 {[%clk 0:00:15.8]} 28.
e5 {[%clk 0:00:08.2]} 28... Kf7 {[%clk 0:00:15]} 29. Rf4 {[%clk 0:00:08.1]}
29... Bd5 {[%clk 0:00:13.8]} 30. Bc5 {[%clk 0:00:06.7]} 30... Rg8 {[%clk
0:00:13.9]} 31. Rf2 {[%clk 0:00:05.6]} 31... Rg3 {[%clk 0:00:13.1]} 32. Rxf5+
{[%clk 0:00:05.3]} 32... Ke6 {[%clk 0:00:13.2]} 33. Rf2 {[%clk 0:00:05.2]} 33...
Rxh3+ {[%clk 0:00:12.4]} 34. Kg1 {[%clk 0:00:05.2]} 34... Rg3 {[%clk 0:00:13.3]}
35. Re1 {[%clk 0:00:04.3]} 35... h3 {[%clk 0:00:11.7]} 36. Rf6+ {[%clk
0:00:04.1]} 36... Kd7 {[%clk 0:00:12.4]} 37. Rd6+ {[%clk 0:00:03.4]} 37... Kc7
{[%clk 0:00:12.4]} 38. Re2 {[%clk 0:00:02.9]} 38... hxg2 {[%clk 0:00:10.7]} 39.
Rh6 {[%clk 0:00:02.9]} 39... Rag8 {[%clk 0:00:08.9]} 40. Rxh7+ {[%clk 0:00:03]}
40... Kc8 {[%clk 0:00:09.6]} 41. Rf2 {[%clk 0:00:02.1]} 41... R3g7 {[%clk
0:00:06.8]} 42. Rxg7 {[%clk 0:00:02]} 42... Rxg7 {[%clk 0:00:07.7]} 43. Rf8+
{[%clk 0:00:01.8]} 43... Kd7 {[%clk 0:00:07.7]} 44. Rf2 {[%clk 0:00:01.3]} 44...
Rh7 {[%clk 0:00:07.5]} 0-1

[Event "Early-Titled-Tuesday-Blitz-September-12-2023"]
[Site "Chess.com"]
[Date "2023.09.12"]
[Round "5"]
[White "Daniel_Salinas"]
[Black "attack2mateU"]
[Result "0-1"]
[WhiteElo "2376"]
[BlackElo "2738"]
[TimeControl "180+1"]
[EndTime "8:55:30 PDT"]
[Termination "attack2mateU won by resignation"]

1. Nf3 {[%clk 0:02:53.7]} 1... c5 {[%clk 0:02:58.4]} 2. g3 {[%clk 0:02:47.7]}
2... Nc6 {[%clk 0:02:57]} 3. d4 {[%clk 0:02:23.5]} 3... cxd4 {[%clk 0:02:52.8]}
4. Nxd4 {[%clk 0:02:24.4]} 4... g6 {[%clk 0:02:47]} 5. Bg2 {[%clk 0:02:21.3]}
5... Bg7 {[%clk 0:02:46.7]} 6. Nxc6 {[%clk 0:02:21]} 6... bxc6 {[%clk
0:02:41.8]} 7. c4 {[%clk 0:02:21.6]} 7... Rb8 {[%clk 0:02:21.4]} 8. Nc3 {[%clk
0:02:20.7]} 8... Qa5 {[%clk 0:02:20.9]} 9. O-O {[%clk 0:02:12.8]} 9... Ba6
{[%clk 0:02:21.3]} 10. Bd2 {[%clk 0:01:37.6]} 10... Rxb2 {[%clk 0:02:12.8]} 11.
Ne4 {[%clk 0:01:15.6]} 11... Rxd2 {[%clk 0:01:11.1]} 12. Nxd2 {[%clk 0:00:44.8]}
12... Bxa1 {[%clk 0:01:10.7]} 13. Qxa1 {[%clk 0:00:45.7]} 13... Nf6 {[%clk
0:01:10.6]} 14. Ne4 {[%clk 0:00:44.5]} 14... O-O {[%clk 0:01:10.8]} 15. Nxf6+
{[%clk 0:00:36.3]} 15... exf6 {[%clk 0:01:11.7]} 16. Rd1 {[%clk 0:00:29.6]}
16... Qf5 {[%clk 0:00:56.4]} 17. Qd4 {[%clk 0:00:26]} 17... c5 {[%clk
0:00:52.8]} 18. Qxd7 {[%clk 0:00:23.6]} 18... Qxd7 {[%clk 0:00:52]} 19. Rxd7
{[%clk 0:00:24.5]} 19... Bxc4 {[%clk 0:00:52.3]} 20. Rxa7 {[%clk 0:00:24.1]}
20... Bxe2 {[%clk 0:00:52.4]} 21. Bd5 {[%clk 0:00:24.2]} 21... Rd8 {[%clk
0:00:14.3]} 22. Bxf7+ {[%clk 0:00:24]} 22... Kh8 {[%clk 0:00:15]} 23. f4 {[%clk
0:00:24.6]} 23... Rd2 {[%clk 0:00:07.9]} 24. Kf2 {[%clk 0:00:22.9]} 24... Bg4+
{[%clk 0:00:05]} 25. Ke3 {[%clk 0:00:20.8]} 25... Rxh2 {[%clk 0:00:05.6]} 26. a4
{[%clk 0:00:18.5]} 26... Rg2 {[%clk 0:00:06.2]} 27. a5 {[%clk 0:00:16.1]} 27...
Rxg3+ {[%clk 0:00:06.7]} 28. Kf2 {[%clk 0:00:15]} 28... Rf3+ {[%clk 0:00:06.5]}
29. Kg2 {[%clk 0:00:14.2]} 29... Ra3 {[%clk 0:00:07]} 30. a6 {[%clk 0:00:13]}
30... h5 {[%clk 0:00:06.4]} 31. Bc4 {[%clk 0:00:10.2]} 31... h4 {[%clk
0:00:05.9]} 32. Rc7 {[%clk 0:00:07.2]} 32... Rc3 {[%clk 0:00:03.7]} 33. a7
{[%clk 0:00:05.4]} 33... Bf3+ {[%clk 0:00:04.2]} 34. Kf2 {[%clk 0:00:04.9]}
34... h3 {[%clk 0:00:04.8]} 35. Be2 {[%clk 0:00:02.2]} 35... h2 {[%clk
0:00:03.9]} 36. Bxf3 {[%clk 0:00:02.5]} 36... Rxf3+ {[%clk 0:00:04.1]} 37. Kxf3
{[%clk 0:00:03.4]} 37... h1=Q+ {[%clk 0:00:04.3]} 38. Kg3 {[%clk 0:00:04.3]}
38... Qg1+ {[%clk 0:00:04.1]} 39. Kh4 {[%clk 0:00:04.1]} 39... Qh1+ {[%clk
0:00:04.2]} 40. Kg3 {[%clk 0:00:02.2]} 40... Qa8 {[%clk 0:00:04.9]} 41. Kf2
{[%clk 0:00:01.5]} 41... Kg8 {[%clk 0:00:04.5]} 42. Ke3 {[%clk 0:00:02.2]} 42...
g5 {[%clk 0:00:04.5]} 43. fxg5 {[%clk 0:00:02.5]} 43... fxg5 {[%clk 0:00:05.4]}
44. Kf2 {[%clk 0:00:03.3]} 44... c4 {[%clk 0:00:05.4]} 45. Kg3 {[%clk
0:00:02.9]} 45... c3 {[%clk 0:00:05.8]} 46. Kg4 {[%clk 0:00:01.5]} 46... c2
{[%clk 0:00:06.1]} 47. Kxg5 {[%clk 0:00:02.1]} 47... c1=Q+ {[%clk 0:00:05.6]}
48. Rxc1 {[%clk 0:00:02.8]} 48... Qxa7 {[%clk 0:00:06.2]} 49. Rg1 {[%clk
0:00:03.4]} 49... Qxg1+ {[%clk 0:00:06]} 0-1

[Event "Early-Titled-Tuesday-Blitz-September-12-2023"]
[Site "Chess.com"]
[Date "2023.09.12"]
[Round "5"]
[White "KNVB"]
[Black "CristianS27"]
[Result "1-0"]
[WhiteElo "2753"]
[BlackElo "2510"]
[TimeControl "180+1"]
[EndTime "8:55:30 PDT"]
[Termination "KNVB won on time"]

1. c4 {[%clk 0:02:52.7]} 1... Nf6 {[%clk 0:02:59.8]} 2. g3 {[%clk 0:02:50.7]}
2... g6 {[%clk 0:03:00.7]} 3. Bg2 {[%clk 0:02:51.1]} 3... Bg7 {[%clk 0:03:01.6]}
4. Nf3 {[%clk 0:02:51.7]} 4... O-O {[%clk 0:03:02.5]} 5. O-O {[%clk 0:02:52.4]}
5... d6 {[%clk 0:03:03.2]} 6. Nc3 {[%clk 0:02:51.9]} 6... Nc6 {[%clk 0:03:03.6]}
7. b3 {[%clk 0:02:40.4]} 7... e5 {[%clk 0:03:01.8]} 8. Bb2 {[%clk 0:02:30.9]}
8... h6 {[%clk 0:02:57.4]} 9. d4 {[%clk 0:02:18.9]} 9... e4 {[%clk 0:02:43.7]}
10. Ne1 {[%clk 0:01:35]} 10... Re8 {[%clk 0:02:41.8]} 11. d5 {[%clk 0:01:33]}
11... Na5 {[%clk 0:02:23.6]} 12. Nc2 {[%clk 0:01:29.2]} 12... a6 {[%clk
0:02:20.4]} 13. Ne3 {[%clk 0:01:15.6]} 13... c5 {[%clk 0:02:07.8]} 14. dxc6
{[%clk 0:00:43.4]} 14... bxc6 {[%clk 0:02:08.7]} 15. Qd2 {[%clk 0:00:26.6]}
15... Nb7 {[%clk 0:01:21.6]} 16. Rfd1 {[%clk 0:00:11.1]} 16... h5 {[%clk
0:01:20.6]} 17. Qc2 {[%clk 0:00:09.3]} 17... Qe7 {[%clk 0:01:14]} 18. Na4 {[%clk
0:00:05.4]} 18... Rb8 {[%clk 0:01:01.4]} 19. Rd2 {[%clk 0:00:03.1]} 19... h4
{[%clk 0:00:59.3]} 20. Rad1 {[%clk 0:00:03.2]} 20... hxg3 {[%clk 0:00:59.3]} 21.
hxg3 {[%clk 0:00:04.1]} 21... Ng4 {[%clk 0:00:57]} 22. Nxg4 {[%clk 0:00:04.5]}
22... Bxg4 {[%clk 0:00:57.9]} 23. Bxg7 {[%clk 0:00:04.7]} 23... Kxg7 {[%clk
0:00:58.8]} 24. Qc3+ {[%clk 0:00:03.2]} 24... f6 {[%clk 0:00:55.8]} 25. Qe3
{[%clk 0:00:02.5]} 25... Bf5 {[%clk 0:00:47.5]} 26. Nc3 {[%clk 0:00:02.4]} 26...
Qe5 {[%clk 0:00:43.6]} 27. f3 {[%clk 0:00:01.9]} 27... exf3 {[%clk 0:00:42.2]}
28. Qxe5 {[%clk 0:00:02.3]} 28... dxe5 {[%clk 0:00:26.7]} 29. exf3 {[%clk
0:00:02]} 29... Rbd8 {[%clk 0:00:25.1]} 30. Kf2 {[%clk 0:00:02.3]} 30... Kf7
{[%clk 0:00:24.6]} 31. Ke3 {[%clk 0:00:02.3]} 31... Ke7 {[%clk 0:00:24.2]} 32.
f4 {[%clk 0:00:02.1]} 32... exf4+ {[%clk 0:00:23.3]} 33. gxf4 {[%clk 0:00:02.5]}
33... Rxd2 {[%clk 0:00:15.9]} 34. Rxd2 {[%clk 0:00:03.4]} 34... Na5 {[%clk
0:00:13.1]} 35. Na4 {[%clk 0:00:02.5]} 35... Kf7+ {[%clk 0:00:10.6]} 36. Kd4
{[%clk 0:00:02.6]} 36... Rd8+ {[%clk 0:00:10]} 37. Kc3 {[%clk 0:00:02.2]} 37...
Re8 {[%clk 0:00:10.6]} 38. Kb4 {[%clk 0:00:02.1]} 38... Nb7 {[%clk 0:00:07.1]}
39. Bxc6 {[%clk 0:00:02.7]} 39... Nd8 {[%clk 0:00:05.3]} 40. Bxe8+ {[%clk
0:00:03]} 40... Kxe8 {[%clk 0:00:03]} 41. Nc5 {[%clk 0:00:03.7]} 41... Nc6+
{[%clk 0:00:02.9]} 42. Kc3 {[%clk 0:00:04.5]} 42... a5 {[%clk 0:00:03.1]} 43.
Nb7 {[%clk 0:00:04.7]} 43... Ne7 {[%clk 0:00:01.7]} 44. Nd6+ {[%clk 0:00:04.8]}
44... Kf8 {[%clk 0:00:02.4]} 45. Nxf5 {[%clk 0:00:05.1]} 45... Nxf5 {[%clk
0:00:03.3]} 46. Rd5 {[%clk 0:00:05.4]} 46... Ng3 {[%clk 0:00:01.3]} 47. Kd3
{[%clk 0:00:05.5]} 47... Ne2 {[%clk 0:00:02.1]} 48. Kxe2 {[%clk 0:00:05.9]}
48... a4 {[%clk 0:00:01.2]} 49. bxa4 {[%clk 0:00:06.8]} 1-0

[Event "Early-Titled-Tuesday-Blitz-September-12-2023"]
[Site "Chess.com"]
[Date "2023.09.12"]
[Round "5"]
[White "Parhamov"]
[Black "MITerryble"]
[Result "1/2-1/2"]
[WhiteElo "3109"]
[BlackElo "2941"]
[TimeControl "180+1"]
[EndTime "8:55:32 PDT"]
[Termination "Game drawn by repetition"]

1. d4 {[%clk 0:03:00.9]} 1... e6 {[%clk 0:03:00.4]} 2. c4 {[%clk 0:02:56]} 2...
Bb4+ {[%clk 0:03:00.5]} 3. Nd2 {[%clk 0:02:55]} 3... Nf6 {[%clk 0:02:57.8]} 4.
g3 {[%clk 0:02:55.2]} 4... O-O {[%clk 0:02:56.5]} 5. Bg2 {[%clk 0:02:55.1]} 5...
d6 {[%clk 0:02:52]} 6. e4 {[%clk 0:02:52.5]} 6... e5 {[%clk 0:02:51.7]} 7. Ne2
{[%clk 0:02:49.2]} 7... Re8 {[%clk 0:02:50]} 8. d5 {[%clk 0:02:43.8]} 8... a5
{[%clk 0:02:41.4]} 9. O-O {[%clk 0:02:43.4]} 9... Nbd7 {[%clk 0:02:38.6]} 10. h3
{[%clk 0:02:31.3]} 10... c6 {[%clk 0:02:25.1]} 11. a3 {[%clk 0:02:17.6]} 11...
Bxd2 {[%clk 0:02:25.1]} 12. Bxd2 {[%clk 0:02:17.6]} 12... Nc5 {[%clk 0:02:11.5]}
13. Nc3 {[%clk 0:02:16.8]} 13... cxd5 {[%clk 0:01:52]} 14. cxd5 {[%clk
0:02:15.9]} 14... Bd7 {[%clk 0:01:43.6]} 15. Be3 {[%clk 0:02:13.8]} 15... a4
{[%clk 0:01:43.5]} 16. f4 {[%clk 0:02:03.3]} 16... exf4 {[%clk 0:01:33.1]} 17.
Bxc5 {[%clk 0:02:03.1]} 17... f3 {[%clk 0:01:33.6]} 18. Bd4 {[%clk 0:00:52]}
18... fxg2 {[%clk 0:01:31.4]} 19. Rxf6 {[%clk 0:00:52.6]} 19... gxf6 {[%clk
0:01:26.2]} 20. Qf3 {[%clk 0:00:52.5]} 20... Re5 {[%clk 0:01:22.7]} 21. Kxg2
{[%clk 0:00:52]} 21... Qe7 {[%clk 0:01:12.4]} 22. Rf1 {[%clk 0:00:51.5]} 22...
Kg7 {[%clk 0:00:24.3]} 23. g4 {[%clk 0:00:45.6]} 23... Rc8 {[%clk 0:00:22.9]}
24. Ne2 {[%clk 0:00:34]} 24... Rc4 {[%clk 0:00:18.8]} 25. Bxe5 {[%clk
0:00:31.4]} 25... Qxe5 {[%clk 0:00:18.5]} 26. Ng3 {[%clk 0:00:32.1]} 26... Kg6
{[%clk 0:00:07]} 27. Nh5 {[%clk 0:00:20.3]} 27... Rc2+ {[%clk 0:00:06.9]} 28.
Rf2 {[%clk 0:00:19.1]} 28... Rxf2+ {[%clk 0:00:07.4]} 29. Kxf2 {[%clk
0:00:19.1]} 29... Qxb2+ {[%clk 0:00:07.8]} 30. Kg3 {[%clk 0:00:19.3]} 30... Qe5+
{[%clk 0:00:08.7]} 31. Nf4+ {[%clk 0:00:18.3]} 31... Kg7 {[%clk 0:00:07.6]} 32.
Kg2 {[%clk 0:00:18.8]} 32... b5 {[%clk 0:00:06]} 33. Nh5+ {[%clk 0:00:14.6]}
33... Kg6 {[%clk 0:00:06.3]} 34. Nf4+ {[%clk 0:00:15.1]} 34... Kg7 {[%clk
0:00:03.9]} 35. Nh5+ {[%clk 0:00:14.7]} 35... Kg6 {[%clk 0:00:04.4]} 36. Qe3
{[%clk 0:00:14.9]} 36... Qb2+ {[%clk 0:00:04.1]} 37. Kf3 {[%clk 0:00:14.8]}
37... Qb3 {[%clk 0:00:03.2]} 38. Nf4+ {[%clk 0:00:12.9]} 38... Kg5 {[%clk
0:00:03]} 39. Nd3+ {[%clk 0:00:12]} 39... Kg6 {[%clk 0:00:03.1]} 40. Kg3 {[%clk
0:00:06.6]} 40... Kg7 {[%clk 0:00:03.4]} 41. g5 {[%clk 0:00:06.8]} 41... f5
{[%clk 0:00:02.3]} 42. e5 {[%clk 0:00:06.4]} 42... dxe5 {[%clk 0:00:02.7]} 43.
Qxe5+ {[%clk 0:00:06.5]} 43... Kg8 {[%clk 0:00:03.5]} 44. Qb8+ {[%clk
0:00:06.5]} 44... Kg7 {[%clk 0:00:03.6]} 45. Qe5+ {[%clk 0:00:06.9]} 45... Kg8
{[%clk 0:00:04.2]} 46. Qb8+ {[%clk 0:00:05.3]} 46... Kg7 {[%clk 0:00:04.6]} 47.
Qe5+ {[%clk 0:00:05.5]} 1/2-1/2

[Event "Early-Titled-Tuesday-Blitz-September-12-2023"]
[Site "Chess.com"]
[Date "2023.09.12"]
[Round "5"]
[White "h4parah5"]
[Black "Rutricks"]
[Result "1-0"]
[WhiteElo "2942"]
[BlackElo "2674"]
[TimeControl "180+1"]
[EndTime "8:55:33 PDT"]
[Termination "h4parah5 won by resignation"]

1. Nf3 {[%clk 0:03:00.9]} 1... g6 {[%clk 0:03:00.3]} 2. e4 {[%clk 0:02:59.1]}
2... Bg7 {[%clk 0:03:01.2]} 3. d4 {[%clk 0:02:59.2]} 3... c6 {[%clk 0:03:01.8]}
4. Nc3 {[%clk 0:02:58.8]} 4... d5 {[%clk 0:03:02.4]} 5. h3 {[%clk 0:02:59.4]}
5... dxe4 {[%clk 0:03:02.4]} 6. Nxe4 {[%clk 0:03:00.3]} 6... Nf6 {[%clk
0:03:03]} 7. Nxf6+ {[%clk 0:03:00.6]} 7... exf6 {[%clk 0:03:03.9]} 8. Bd3 {[%clk
0:02:59.6]} 8... O-O {[%clk 0:03:04.4]} 9. O-O {[%clk 0:02:59.9]} 9... a5 {[%clk
0:03:05.1]} 10. Re1 {[%clk 0:02:59.3]} 10... Na6 {[%clk 0:03:05.7]} 11. Bf4
{[%clk 0:02:58.5]} 11... Nb4 {[%clk 0:03:05.2]} 12. Bf1 {[%clk 0:02:58.4]} 12...
Nd5 {[%clk 0:03:05.3]} 13. Bd2 {[%clk 0:02:56.2]} 13... Be6 {[%clk 0:03:04.2]}
14. c4 {[%clk 0:02:55.7]} 14... Ne7 {[%clk 0:02:53.1]} 15. a4 {[%clk 0:02:50.5]}
15... Nf5 {[%clk 0:02:47]} 16. Bc3 {[%clk 0:02:48.7]} 16... Re8 {[%clk
0:02:44.8]} 17. Qc2 {[%clk 0:02:47]} 17... Qd7 {[%clk 0:02:39.7]} 18. Rad1
{[%clk 0:02:43.1]} 18... Nd6 {[%clk 0:02:34]} 19. b3 {[%clk 0:02:37.9]} 19...
Bf5 {[%clk 0:02:31.9]} 20. Bd3 {[%clk 0:02:37.3]} 20... Bxd3 {[%clk 0:02:27.2]}
21. Qxd3 {[%clk 0:02:38.2]} 21... Nf5 {[%clk 0:02:25.2]} 22. Rxe8+ {[%clk
0:02:30]} 22... Qxe8 {[%clk 0:02:20.6]} 23. d5 {[%clk 0:02:29.3]} 23... cxd5
{[%clk 0:02:06.7]} 24. Qxd5 {[%clk 0:02:26.4]} 24... Ne3 {[%clk 0:01:34.9]} 25.
fxe3 {[%clk 0:02:13.9]} 25... Qxe3+ {[%clk 0:01:35.8]} 26. Kh1 {[%clk
0:02:14.1]} 26... Qxc3 {[%clk 0:01:36.3]} 27. Qxb7 {[%clk 0:02:14.2]} 27... Re8
{[%clk 0:01:22.5]} 28. Qb5 {[%clk 0:02:06.1]} 28... Rc8 {[%clk 0:00:54.2]} 29.
Qb7 {[%clk 0:01:21.8]} 29... Re8 {[%clk 0:00:52.4]} 30. Qb5 {[%clk 0:01:21.7]}
30... Rc8 {[%clk 0:00:52.2]} 31. Rd7 {[%clk 0:01:05.1]} 31... Qc1+ {[%clk
0:00:49.4]} 32. Kh2 {[%clk 0:01:04.7]} 32... Qf4+ {[%clk 0:00:49.4]} 33. Kg1
{[%clk 0:01:03.6]} 33... Qc1+ {[%clk 0:00:49.5]} 34. Kf2 {[%clk 0:01:02.9]}
34... Bh6 {[%clk 0:00:35.6]} 35. Qd5 {[%clk 0:00:57.3]} 35... Qe3+ {[%clk
0:00:32.9]} 36. Kf1 {[%clk 0:00:54.7]} 36... Qc1+ {[%clk 0:00:32.7]} 37. Qd1
{[%clk 0:00:52.6]} 37... Qe3 {[%clk 0:00:24.7]} 38. Rd3 {[%clk 0:00:48.4]} 38...
Qf4 {[%clk 0:00:20.5]} 39. Rd8+ {[%clk 0:00:46.5]} 39... Rxd8 {[%clk 0:00:20.5]}
40. Qxd8+ {[%clk 0:00:47.4]} 40... Kg7 {[%clk 0:00:21.3]} 41. Qxa5 {[%clk
0:00:47.8]} 41... Qc1+ {[%clk 0:00:20.3]} 42. Qe1 {[%clk 0:00:47.7]} 42... Qb2
{[%clk 0:00:17.8]} 43. b4 {[%clk 0:00:33.3]} 43... Qb3 {[%clk 0:00:15.7]} 44. c5
{[%clk 0:00:32.7]} 44... Qxa4 {[%clk 0:00:15.4]} 45. Qc3 {[%clk 0:00:31.7]}
45... Qd1+ {[%clk 0:00:14.9]} 46. Kf2 {[%clk 0:00:32.1]} 46... Bf4 {[%clk
0:00:11.7]} 47. b5 {[%clk 0:00:29.8]} 47... Qb1 {[%clk 0:00:05.5]} 48. b6 {[%clk
0:00:29.1]} 48... Qa2+ {[%clk 0:00:05.2]} 49. Kf1 {[%clk 0:00:28.5]} 49... Qb1+
{[%clk 0:00:05.4]} 50. Ke2 {[%clk 0:00:26.8]} 50... Qa2+ {[%clk 0:00:05.2]} 51.
Kd3 {[%clk 0:00:26.9]} 51... Qa6+ {[%clk 0:00:05.2]} 52. Ke4 {[%clk 0:00:25.4]}
52... Qa4+ {[%clk 0:00:05.2]} 53. Qd4 {[%clk 0:00:24.3]} 53... Qxd4+ {[%clk
0:00:01.3]} 54. Nxd4 {[%clk 0:00:23.3]} 54... Bb8 {[%clk 0:00:02]} 55. c6 {[%clk
0:00:23.4]} 55... f5+ {[%clk 0:00:02.9]} 56. Kd5 {[%clk 0:00:23.4]} 1-0

[Event "Early-Titled-Tuesday-Blitz-September-12-2023"]
[Site "Chess.com"]
[Date "2023.09.12"]
[Round "5"]
[White "Jaka_Brilej"]
[Black "bescmelasti"]
[Result "0-1"]
[WhiteElo "2440"]
[BlackElo "2620"]
[TimeControl "180+1"]
[EndTime "8:55:33 PDT"]
[Termination "bescmelasti won by resignation"]

1. d4 {[%clk 0:02:46.3]} 1... d5 {[%clk 0:02:59.2]} 2. Nf3 {[%clk 0:02:45.5]}
2... Nf6 {[%clk 0:02:58.8]} 3. e3 {[%clk 0:02:45.6]} 3... e6 {[%clk 0:02:55.1]}
4. Bd3 {[%clk 0:02:42.9]} 4... c5 {[%clk 0:02:54.5]} 5. b3 {[%clk 0:02:42.5]}
5... b6 {[%clk 0:02:38.6]} 6. Bb2 {[%clk 0:02:41]} 6... Bb7 {[%clk 0:02:37.6]}
7. O-O {[%clk 0:02:41]} 7... Nbd7 {[%clk 0:02:38.1]} 8. Nbd2 {[%clk 0:02:34.1]}
8... Bd6 {[%clk 0:02:35.7]} 9. Ne5 {[%clk 0:02:19.2]} 9... O-O {[%clk
0:02:30.5]} 10. f4 {[%clk 0:02:13.3]} 10... Ne4 {[%clk 0:02:20.4]} 11. Nxe4
{[%clk 0:02:00.4]} 11... dxe4 {[%clk 0:02:20.5]} 12. Bb5 {[%clk 0:01:55.7]}
12... Nf6 {[%clk 0:02:11.1]} 13. a4 {[%clk 0:01:29.5]} 13... a6 {[%clk
0:02:02.6]} 14. Bc4 {[%clk 0:01:23.1]} 14... Nd5 {[%clk 0:02:03.1]} 15. Qe2
{[%clk 0:01:17.7]} 15... f6 {[%clk 0:02:00.5]} 16. Ng4 {[%clk 0:01:17]} 16...
Qc7 {[%clk 0:01:42.1]} 17. dxc5 {[%clk 0:01:13.5]} 17... Bxc5 {[%clk 0:01:36.8]}
18. Rfd1 {[%clk 0:00:59.8]} 18... Rfd8 {[%clk 0:01:24.7]} 19. Bxd5 {[%clk
0:00:26]} 19... Rxd5 {[%clk 0:01:13.7]} 20. Rxd5 {[%clk 0:00:25]} 20... Bxd5
{[%clk 0:01:14]} 21. c4 {[%clk 0:00:20.5]} 21... Bc6 {[%clk 0:01:10.3]} 22. Rd1
{[%clk 0:00:21]} 22... Rd8 {[%clk 0:01:01]} 23. Rd2 {[%clk 0:00:16.5]} 23... Bb4
{[%clk 0:00:42.7]} 24. Rd4 {[%clk 0:00:13.2]} 24... Bc5 {[%clk 0:00:37.8]} 25.
Rd2 {[%clk 0:00:08.2]} 25... Rd6 {[%clk 0:00:28.2]} 26. Nf2 {[%clk 0:00:03.2]}
26... Qd7 {[%clk 0:00:25.8]} 27. Rxd6 {[%clk 0:00:02.1]} 27... Qxd6 {[%clk
0:00:26.7]} 28. Kf1 {[%clk 0:00:02.3]} 28... Qd7 {[%clk 0:00:17.4]} 29. Qd1
{[%clk 0:00:02.9]} 29... Bxe3 {[%clk 0:00:09.4]} 30. Qxd7 {[%clk 0:00:03]} 30...
Bxd7 {[%clk 0:00:10.3]} 31. Nxe4 {[%clk 0:00:03.6]} 31... Bxf4 {[%clk
0:00:10.7]} 32. Bd4 {[%clk 0:00:01.9]} 32... b5 {[%clk 0:00:10.9]} 33. axb5
{[%clk 0:00:02]} 33... axb5 {[%clk 0:00:11]} 34. c5 {[%clk 0:00:02.2]} 34... Bc6
{[%clk 0:00:09.8]} 35. Nd6 {[%clk 0:00:02.5]} 35... Bxd6 {[%clk 0:00:09.3]} 36.
cxd6 {[%clk 0:00:02.6]} 36... e5 {[%clk 0:00:09.8]} 37. Bc5 {[%clk 0:00:02.9]}
37... Kf7 {[%clk 0:00:10.5]} 38. b4 {[%clk 0:00:03.5]} 38... Ke6 {[%clk
0:00:11]} 39. Kf2 {[%clk 0:00:04.4]} 39... Kd5 {[%clk 0:00:09.6]} 40. g3 {[%clk
0:00:04.9]} 40... g5 {[%clk 0:00:09.2]} 41. Ke3 {[%clk 0:00:05.3]} 41... f5
{[%clk 0:00:09.7]} 42. h4 {[%clk 0:00:05.5]} 42... f4+ {[%clk 0:00:10.6]} 43.
gxf4 {[%clk 0:00:06]} 43... gxf4+ {[%clk 0:00:10.1]} 44. Kf3 {[%clk 0:00:05.7]}
44... h5 {[%clk 0:00:09.8]} 45. Kf2 {[%clk 0:00:05.8]} 45... e4 {[%clk
0:00:09.7]} 46. Ke2 {[%clk 0:00:06.2]} 46... e3 {[%clk 0:00:08.8]} 47. Kf1
{[%clk 0:00:06.3]} 47... Ke4 {[%clk 0:00:09.1]} 48. Ke2 {[%clk 0:00:06.3]} 48...
f3+ {[%clk 0:00:09.5]} 49. Ke1 {[%clk 0:00:07.2]} 49... Bd7 {[%clk 0:00:08.6]}
50. Bb6 {[%clk 0:00:07.2]} 50... f2+ {[%clk 0:00:08.3]} 51. Ke2 {[%clk
0:00:07.8]} 51... Bg4+ {[%clk 0:00:08.4]} 0-1